[Event "Titled Tuesday Blitz September 27 Early 2022"]
[White "Malek, Jan"]
[Black "Harsh Suresh"]
[WhiteFideId "21864080"]
[BlackFideId "45018464"]
[WhiteElo "2172"]
[BlackElo "2070"]
[Result "1-0"]
[Round "03"]
[TimeControl "180+1"]
[Date "2022.09.27"]
[WhiteClock "0:00:15"]
[BlackClock "0:00:18"]

1. c4 {[%clk 0:03:00]}  Nf6 {[%clk 0:02:58]} 2. Nc3 {[%clk 0:03:01]}  e5 {[%clk 0:02:56]} 3. g3 {[%clk 0:03:00]}  d6 {[%clk 0:02:50]} 4. Bg2 {[%clk 0:03:00]}  g6 {[%clk 0:02:51]} 5. Nf3 {[%clk 0:03:00]}  Bg7 {[%clk 0:02:51]} 6. O-O {[%clk 0:03:01]}  O-O {[%clk 0:02:52]} 7. d4 {[%clk 0:02:59]}  Nbd7 {[%clk 0:02:49]} 8. e4 {[%clk 0:02:59]}  exd4 {[%clk 0:02:46]} 9. Nxd4 {[%clk 0:03:00]}  Re8 {[%clk 0:02:46]} 10. h3 {[%clk 0:03:00]}  Nc5 {[%clk 0:02:42]} 11. Re1 {[%clk 0:02:59]}  Ne6 {[%clk 0:02:42]} 12. Nc2 {[%clk 0:02:57]}  c6 {[%clk 0:02:38]} 13. Be3 {[%clk 0:02:55]}  Qc7 {[%clk 0:02:37]} 14. Qd2 {[%clk 0:02:53]}  Nc5 {[%clk 0:02:34]} 15. Bf4 {[%clk 0:02:49]}  Bf8 {[%clk 0:02:33]} 16. Rad1 {[%clk 0:02:47]}  Be6 {[%clk 0:02:30]} 17. Bxd6 {[%clk 0:02:31]}  Bxd6 {[%clk 0:02:29]} 18. Qxd6 {[%clk 0:02:32]}  Qxd6 {[%clk 0:02:29]} 19. Rxd6 {[%clk 0:02:33]}  Red8 {[%clk 0:02:26]} 20. Red1 {[%clk 0:02:25]}  Rxd6 {[%clk 0:02:25]} 21. Rxd6 {[%clk 0:02:26]}  Ne8 {[%clk 0:02:23]} 22. Rd4 {[%clk 0:02:26]}  a5 {[%clk 0:02:24]} 23. f4 {[%clk 0:02:23]}  h5 {[%clk 0:02:16]} 24. Ne3 {[%clk 0:02:22]}  f6 {[%clk 0:02:09]} 25. Kf2 {[%clk 0:02:18]}  Bf7 {[%clk 0:02:06]} 26. Bf3 {[%clk 0:02:06]}  Nc7 {[%clk 0:02:05]} 27. Rd6 {[%clk 0:02:04]}  Kf8 {[%clk 0:01:51]} 28. Rd2 {[%clk 0:01:22]}  Ke7 {[%clk 0:01:36]} 29. b3 {[%clk 0:01:21]}  Rd8 {[%clk 0:01:22]} 30. Rxd8 {[%clk 0:01:19]}  Kxd8 {[%clk 0:01:23]} 31. Nc2 {[%clk 0:01:17]}  b5 {[%clk 0:01:18]} 32. Nd4 {[%clk 0:01:15]}  b4 {[%clk 0:01:14]} 33. Nce2 {[%clk 0:00:54]}  Kd7 {[%clk 0:01:07]} 34. Ke3 {[%clk 0:00:54]}  Kd6 {[%clk 0:00:32]} 35. e5+ {[%clk 0:00:51]}  fxe5 {[%clk 0:00:33]} 36. fxe5+ {[%clk 0:00:51]}  Kxe5 {[%clk 0:00:33]} 37. Nxc6+ {[%clk 0:00:52]}  Kf6 {[%clk 0:00:33]} 38. Nxa5 {[%clk 0:00:50]}  Be6 {[%clk 0:00:33]} 39. h4 {[%clk 0:00:49]}  Bf5 {[%clk 0:00:33]} 40. Nc6 {[%clk 0:00:47]}  N7a6 {[%clk 0:00:30]} 41. Nf4 {[%clk 0:00:46]}  Bb1 {[%clk 0:00:30]} 42. Nd5+ {[%clk 0:00:46]}  Kf5 {[%clk 0:00:26]} 43. Ncxb4 {[%clk 0:00:39]}  Nb8 {[%clk 0:00:24]} 44. Nc3 {[%clk 0:00:35]}  Bxa2 {[%clk 0:00:19]} 45. Nbxa2 {[%clk 0:00:34]}  Nxb3 {[%clk 0:00:20]} 46. Nd5 {[%clk 0:00:33]}  Nc5 {[%clk 0:00:16]} 47. Nab4 {[%clk 0:00:31]}  Nbd7 {[%clk 0:00:16]} 48. Nd3 {[%clk 0:00:28]}  Nxd3 {[%clk 0:00:16]} 49. Kxd3 {[%clk 0:00:19]}  Ne5+ {[%clk 0:00:16]} 50. Ke2 {[%clk 0:00:18]}  Nxc4 {[%clk 0:00:16]} 51. Ne3+ {[%clk 0:00:16]}  Nxe3 {[%clk 0:00:13]} 52. Kxe3 {[%clk 0:00:16]}  g5 {[%clk 0:00:14]} 53. Bxh5 {[%clk 0:00:07]}  gxh4 {[%clk 0:00:14]} 54. g4+ {[%clk 0:00:08]}  Kg5 {[%clk 0:00:14]} 55. Kf3 {[%clk 0:00:09]}  Kh6 {[%clk 0:00:10]} 56. Kg2 {[%clk 0:00:10]}  Kg5 {[%clk 0:00:10]} 57. Kh2 {[%clk 0:00:10]}  Kf4 {[%clk 0:00:11]} 58. Kg2 {[%clk 0:00:10]}  Kg5 {[%clk 0:00:10]} 59. Kh3 {[%clk 0:00:10]}  Kh6 {[%clk 0:00:11]} 60. Kxh4 {[%clk 0:00:10]}  Kg7 {[%clk 0:00:12]} 61. g5 {[%clk 0:00:10]}  Kh8 {[%clk 0:00:13]} 62. Kg4 {[%clk 0:00:11]}  Kg7 {[%clk 0:00:14]} 63. Kf5 {[%clk 0:00:12]}  Kg8 {[%clk 0:00:15]} 64. Bf3 {[%clk 0:00:12]}  Kf8 {[%clk 0:00:15]} 65. Kf6 {[%clk 0:00:12]}  Kg8 {[%clk 0:00:16]} 66. g6 {[%clk 0:00:13]}  Kh8 {[%clk 0:00:16]} 67. g7+ {[%clk 0:00:13]}  Kh7 {[%clk 0:00:17]} 68. Be4+ {[%clk 0:00:13]}  Kg8 {[%clk 0:00:17]} 69. Bd5+ {[%clk 0:00:13]}  Kh7 {[%clk 0:00:18]} 70. g8=Q+ {[%clk 0:00:14]}  Kh6 {[%clk 0:00:18]} 71. Qh8# {[%clk 0:00:15]} 1-0


[Site "https://www.chess.com"]

[Event "Titled Tuesday Blitz September 27 Early 2022"]
[White "Marn, Jan"]
[Black "Dahale, Atul"]
[WhiteFideId "14619245"]
[BlackFideId "5037794"]
[WhiteElo "2167"]
[BlackElo "2017"]
[Result "0-1"]
[Round "03"]
[TimeControl "180+1"]
[Date "2022.09.27"]
[WhiteClock "0:00:02"]
[BlackClock "0:01:13"]

1. d4 {[%clk 0:03:00]}  Nf6 {[%clk 0:02:57]} 2. Nf3 {[%clk 0:02:59]}  d6 {[%clk 0:02:54]} 3. Bg5 {[%clk 0:02:58]}  Nbd7 {[%clk 0:02:50]} 4. Nbd2 {[%clk 0:02:57]}  g6 {[%clk 0:02:50]} 5. e3 {[%clk 0:02:56]}  Bg7 {[%clk 0:02:50]} 6. Bd3 {[%clk 0:02:56]}  O-O {[%clk 0:02:50]} 7. O-O {[%clk 0:02:56]}  e5 {[%clk 0:02:47]} 8. dxe5 {[%clk 0:02:48]}  dxe5 {[%clk 0:02:46]} 9. Ne4 {[%clk 0:02:48]}  Qe8 {[%clk 0:02:39]} 10. Bxf6 {[%clk 0:02:31]}  Nxf6 {[%clk 0:02:40]} 11. Nxf6+ {[%clk 0:02:31]}  Bxf6 {[%clk 0:02:37]} 12. e4 {[%clk 0:02:30]}  Bg4 {[%clk 0:02:34]} 13. h3 {[%clk 0:02:29]}  Bxf3 {[%clk 0:02:34]} 14. Qxf3 {[%clk 0:02:30]}  Bg7 {[%clk 0:02:35]} 15. Bc4 {[%clk 0:02:27]}  Kh8 {[%clk 0:02:30]} 16. Rfd1 {[%clk 0:02:24]}  c6 {[%clk 0:02:25]} 17. Rd6 {[%clk 0:02:12]}  f5 {[%clk 0:02:24]} 18. Rad1 {[%clk 0:02:10]}  fxe4 {[%clk 0:02:15]} 19. Qxe4 {[%clk 0:02:11]}  Rf4 {[%clk 0:02:15]} 20. Qe2 {[%clk 0:02:09]}  e4 {[%clk 0:02:06]} 21. Rd7 {[%clk 0:01:56]}  b5 {[%clk 0:02:06]} 22. Bb3 {[%clk 0:01:56]}  Qe5 {[%clk 0:02:01]} 23. a4 {[%clk 0:01:41]}  Raf8 {[%clk 0:01:57]} 24. Rd8 {[%clk 0:01:40]}  Qc5 {[%clk 0:01:38]} 25. Rxf8+ {[%clk 0:01:33]}  Rxf8 {[%clk 0:01:38]} 26. c3 {[%clk 0:01:26]}  b4 {[%clk 0:01:35]} 27. Qxe4 {[%clk 0:00:32]}  Qxf2+ {[%clk 0:01:29]} 28. Kh1 {[%clk 0:00:32]}  bxc3 {[%clk 0:01:27]} 29. bxc3 {[%clk 0:00:31]}  Bxc3 {[%clk 0:01:20]} 30. Qxc6 {[%clk 0:00:29]}  Be5 {[%clk 0:01:15]} 31. Qc5 {[%clk 0:00:02]}  Qxc5 {[%clk 0:01:13]} 0-1


[Site "https://www.chess.com"]

[Event "Titled Tuesday Blitz September 27 Early 2022"]
[White "Martin, Lewis"]
[Black "Torres Boch, Jose Francisco"]
[WhiteFideId "410551"]
[BlackFideId "2278383"]
[WhiteElo "2145"]
[BlackElo "2088"]
[Result "1/2-1/2"]
[Round "03"]
[TimeControl "180+1"]
[Date "2022.09.27"]
[WhiteClock "0:00:03"]
[BlackClock "0:00:18"]

1. e4 {[%clk 0:03:00]}  e5 {[%clk 0:02:53]} 2. Nf3 {[%clk 0:03:00]}  Nc6 {[%clk 0:02:51]} 3. Bb5 {[%clk 0:03:01]}  a6 {[%clk 0:02:51]} 4. Ba4 {[%clk 0:03:00]}  Nf6 {[%clk 0:02:50]} 5. O-O {[%clk 0:03:00]}  Be7 {[%clk 0:02:50]} 6. Re1 {[%clk 0:03:00]}  b5 {[%clk 0:02:50]} 7. Bb3 {[%clk 0:03:00]}  d6 {[%clk 0:02:51]} 8. c3 {[%clk 0:02:59]}  O-O {[%clk 0:02:50]} 9. h3 {[%clk 0:03:00]}  Nb8 {[%clk 0:02:51]} 10. d3 {[%clk 0:02:57]}  Nbd7 {[%clk 0:02:29]} 11. Nbd2 {[%clk 0:02:57]}  Bb7 {[%clk 0:02:14]} 12. Nf1 {[%clk 0:02:56]}  Nc5 {[%clk 0:01:54]} 13. Bc2 {[%clk 0:02:55]}  Re8 {[%clk 0:01:55]} 14. g4 {[%clk 0:02:41]}  Bf8 {[%clk 0:01:42]} 15. Ng3 {[%clk 0:02:41]}  g6 {[%clk 0:01:40]} 16. d4 {[%clk 0:02:31]}  exd4 {[%clk 0:01:33]} 17. cxd4 {[%clk 0:02:31]}  Ne6 {[%clk 0:01:31]} 18. b4 {[%clk 0:02:09]}  Bg7 {[%clk 0:01:28]} 19. Rb1 {[%clk 0:02:03]}  c5 {[%clk 0:01:28]} 20. d5 {[%clk 0:01:55]}  Nd4 {[%clk 0:01:28]} 21. Nxd4 {[%clk 0:01:52]}  cxd4 {[%clk 0:01:28]} 22. Bb2 {[%clk 0:01:45]}  a5 {[%clk 0:01:11]} 23. a3 {[%clk 0:01:16]}  axb4 {[%clk 0:01:07]} 24. axb4 {[%clk 0:01:17]}  Nd7 {[%clk 0:01:04]} 25. Bxd4 {[%clk 0:01:16]}  Bxd4 {[%clk 0:01:02]} 26. Qxd4 {[%clk 0:01:17]}  Ne5 {[%clk 0:01:00]} 27. Kg2 {[%clk 0:01:15]}  Ra3 {[%clk 0:00:59]} 28. Re3 {[%clk 0:01:11]}  Qa8 {[%clk 0:00:54]} 29. Rbe1 {[%clk 0:00:52]}  Nc4 {[%clk 0:00:53]} 30. Rxa3 {[%clk 0:00:51]}  Qxa3 {[%clk 0:00:54]} 31. Rb1 {[%clk 0:00:32]}  Rc8 {[%clk 0:00:54]} 32. Rb3 {[%clk 0:00:30]}  Qa2 {[%clk 0:00:50]} 33. Bd1 {[%clk 0:00:28]}  Qd2 {[%clk 0:00:39]} 34. Rd3 {[%clk 0:00:23]}  Qe1 {[%clk 0:00:34]} 35. Ne2 {[%clk 0:00:19]}  Qxb4 {[%clk 0:00:32]} 36. Rb3 {[%clk 0:00:13]}  Qd2 {[%clk 0:00:32]} 37. Qxd2 {[%clk 0:00:12]}  Nxd2 {[%clk 0:00:33]} 38. Rxb5 {[%clk 0:00:12]}  Ba6 {[%clk 0:00:33]} 39. Rb6 {[%clk 0:00:12]}  Bxe2 {[%clk 0:00:33]} 40. Bxe2 {[%clk 0:00:13]}  Nxe4 {[%clk 0:00:33]} 41. Bf3 {[%clk 0:00:13]}  Rc4 {[%clk 0:00:28]} 42. Rb8+ {[%clk 0:00:12]}  Kg7 {[%clk 0:00:28]} 43. Re8 {[%clk 0:00:11]}  Nf6 {[%clk 0:00:28]} 44. Rd8 {[%clk 0:00:10]}  Ne4 {[%clk 0:00:26]} 45. Bxe4 {[%clk 0:00:11]}  Rxe4 {[%clk 0:00:27]} 46. Rxd6 {[%clk 0:00:11]}  Rd4 {[%clk 0:00:28]} 47. Rd7 {[%clk 0:00:11]}  h6 {[%clk 0:00:28]} 48. Kf3 {[%clk 0:00:11]}  g5 {[%clk 0:00:27]} 49. Ke3 {[%clk 0:00:11]}  Rd1 {[%clk 0:00:27]} 50. f4 {[%clk 0:00:11]}  Kg6 {[%clk 0:00:26]} 51. f5+ {[%clk 0:00:11]}  Kf6 {[%clk 0:00:27]} 52. Rd6+ {[%clk 0:00:11]}  Ke5 {[%clk 0:00:27]} 53. Rxh6 {[%clk 0:00:10]}  Rxd5 {[%clk 0:00:26]} 54. Rh7 {[%clk 0:00:10]}  Kf6 {[%clk 0:00:26]} 55. Ke4 {[%clk 0:00:10]}  Re5+ {[%clk 0:00:26]} 56. Kd4 {[%clk 0:00:10]}  Re1 {[%clk 0:00:26]} 57. Rh5 {[%clk 0:00:10]}  Re2 {[%clk 0:00:24]} 58. Kd5 {[%clk 0:00:09]}  Re1 {[%clk 0:00:25]} 59. Kc6 {[%clk 0:00:10]}  Rd1 {[%clk 0:00:25]} 60. Rh6+ {[%clk 0:00:09]}  Ke5 {[%clk 0:00:20]} 61. Rh7 {[%clk 0:00:08]}  Kf6 {[%clk 0:00:20]} 62. Kc5 {[%clk 0:00:07]}  Rd3 {[%clk 0:00:20]} 63. Kc4 {[%clk 0:00:07]}  Rd1 {[%clk 0:00:20]} 64. Kc3 {[%clk 0:00:07]}  Rd7 {[%clk 0:00:19]} 65. Rh6+ {[%clk 0:00:04]}  Ke5 {[%clk 0:00:19]} 66. Rc6 {[%clk 0:00:03]}  Kf4 {[%clk 0:00:19]} 67. Rh6 {[%clk 0:00:02]}  Kg3 {[%clk 0:00:19]} 68. Kc2 {[%clk 0:00:02]}  Kf4 {[%clk 0:00:19]} 69. Kc3 {[%clk 0:00:02]}  Kg3 {[%clk 0:00:19]} 70. Kc2 {[%clk 0:00:03]}  Rd5 {[%clk 0:00:18]} 71. Kc3 {[%clk 0:00:03]}  Kf4 {[%clk 0:00:18]} 72. Kc4 {[%clk 0:00:03]}  Rd7 {[%clk 0:00:18]} 73. Kc3 {[%clk 0:00:03]} 1/2-1/2


[Site "https://www.chess.com"]

[Event "Titled Tuesday Blitz September 27 Early 2022"]
[White "Maung, Maung Kyaw Zaw Hein"]
[Black "Stanisz, Patryk"]
[WhiteFideId "13001698"]
[BlackFideId "1123106"]
[WhiteElo "1785"]
[BlackElo "1833"]
[Result "1-0"]
[Round "03"]
[TimeControl "180+1"]
[Date "2022.09.27"]
[WhiteClock "0:00:33"]
[BlackClock "0:00:04"]

1. Nf3 {[%clk 0:03:00]}  d5 {[%clk 0:02:58]} 2. d4 {[%clk 0:03:00]}  c6 {[%clk 0:02:59]} 3. c4 {[%clk 0:03:01]}  Nf6 {[%clk 0:02:58]} 4. Nc3 {[%clk 0:03:01]}  e6 {[%clk 0:02:58]} 5. e3 {[%clk 0:03:01]}  Nbd7 {[%clk 0:02:57]} 6. Qc2 {[%clk 0:03:01]}  Bd6 {[%clk 0:02:56]} 7. b3 {[%clk 0:03:01]}  O-O {[%clk 0:02:56]} 8. Be2 {[%clk 0:03:01]}  Qe7 {[%clk 0:02:57]} 9. O-O {[%clk 0:03:02]}  b6 {[%clk 0:02:57]} 10. Rd1 {[%clk 0:03:02]}  Bb7 {[%clk 0:02:57]} 11. Bb2 {[%clk 0:03:03]}  Rfe8 {[%clk 0:02:57]} 12. Rac1 {[%clk 0:03:02]}  Rac8 {[%clk 0:02:56]} 13. Qb1 {[%clk 0:02:54]}  Bb8 {[%clk 0:02:52]} 14. Rd2 {[%clk 0:02:40]}  c5 {[%clk 0:02:49]} 15. cxd5 {[%clk 0:02:38]}  exd5 {[%clk 0:02:49]} 16. dxc5 {[%clk 0:02:25]}  bxc5 {[%clk 0:02:46]} 17. Qc2 {[%clk 0:01:50]}  Ne5 {[%clk 0:02:15]} 18. Rcd1 {[%clk 0:01:38]}  Nxf3+ {[%clk 0:02:10]} 19. Bxf3 {[%clk 0:01:38]}  d4 {[%clk 0:01:25]} 20. Bxb7 {[%clk 0:01:37]}  Qxb7 {[%clk 0:01:12]} 21. exd4 {[%clk 0:01:30]}  cxd4 {[%clk 0:01:09]} 22. Rxd4 {[%clk 0:01:29]}  Be5 {[%clk 0:00:46]} 23. R4d3 {[%clk 0:01:21]}  Qc7 {[%clk 0:00:42]} 24. g3 {[%clk 0:00:55]}  Ne4 {[%clk 0:00:39]} 25. Rc1 {[%clk 0:00:55]}  Ng5 {[%clk 0:00:13]} 26. h4 {[%clk 0:00:44]}  Ne6 {[%clk 0:00:09]} 27. Qd2 {[%clk 0:00:36]}  Red8 {[%clk 0:00:06]} 28. Nd5 {[%clk 0:00:34]}  Qb7 {[%clk 0:00:04]} 29. Rxc8 {[%clk 0:00:34]}  Rxc8 {[%clk 0:00:04]} 30. Bxe5 {[%clk 0:00:33]} 1-0


[Site "https://www.chess.com"]

[Event "Titled Tuesday Blitz September 27 Early 2022"]
[White "Mirzoev, Azer"]
[Black "Iturrizaga Bonelli, Eduardo"]
[WhiteFideId "13400304"]
[BlackFideId "3901211"]
[WhiteElo "2525"]
[BlackElo "2629"]
[Result "0-1"]
[Round "03"]
[TimeControl "180+1"]
[Date "2022.09.27"]
[WhiteClock "0:00:06"]
[BlackClock "0:00:17"]

1. d4 {[%clk 0:03:00]}  Nf6 {[%clk 0:02:59]} 2. Nf3 {[%clk 0:03:00]}  e6 {[%clk 0:02:59]} 3. c4 {[%clk 0:03:00]}  Bb4+ {[%clk 0:02:58]} 4. Bd2 {[%clk 0:03:00]}  a5 {[%clk 0:02:58]} 5. Nc3 {[%clk 0:02:58]}  d5 {[%clk 0:02:56]} 6. e3 {[%clk 0:02:57]}  O-O {[%clk 0:02:56]} 7. a3 {[%clk 0:02:57]}  Be7 {[%clk 0:02:49]} 8. Qc2 {[%clk 0:02:50]}  Nbd7 {[%clk 0:02:40]} 9. Bd3 {[%clk 0:02:44]}  c6 {[%clk 0:02:38]} 10. O-O {[%clk 0:02:42]}  dxc4 {[%clk 0:02:34]} 11. Bxc4 {[%clk 0:02:41]}  b5 {[%clk 0:02:35]} 12. Bd3 {[%clk 0:02:41]}  Bb7 {[%clk 0:02:33]} 13. Rfd1 {[%clk 0:02:37]}  Bd6 {[%clk 0:02:18]} 14. h3 {[%clk 0:02:34]}  h6 {[%clk 0:02:14]} 15. Ne4 {[%clk 0:02:31]}  Nxe4 {[%clk 0:02:03]} 16. Bxe4 {[%clk 0:02:32]}  Rc8 {[%clk 0:01:59]} 17. Rac1 {[%clk 0:02:24]}  f5 {[%clk 0:01:47]} 18. Bd3 {[%clk 0:02:23]}  c5 {[%clk 0:01:47]} 19. dxc5 {[%clk 0:01:49]}  Rxc5 {[%clk 0:01:20]} 20. Qb1 {[%clk 0:01:47]}  Bxf3 {[%clk 0:01:19]} 21. gxf3 {[%clk 0:01:45]}  Qg5+ {[%clk 0:01:12]} 22. Kf1 {[%clk 0:01:44]}  Qh5 {[%clk 0:01:11]} 23. Rxc5 {[%clk 0:01:35]}  Nxc5 {[%clk 0:00:59]} 24. Bxb5 {[%clk 0:00:41]}  Qxf3 {[%clk 0:00:58]} 25. Be1 {[%clk 0:00:14]}  Ne4 {[%clk 0:00:51]} 26. Bc6 {[%clk 0:00:07]}  Qxh3+ {[%clk 0:00:28]} 27. Kg1 {[%clk 0:00:06]}  Rf6 {[%clk 0:00:17]} 0-1


[Site "https://www.chess.com"]

[Event "Titled Tuesday Blitz September 27 Early 2022"]
[White "Mitrovic, Darko R"]
[Black "Shuvalov, Evgenij"]
[WhiteFideId "927023"]
[BlackFideId "4187237"]
[WhiteElo "2150"]
[BlackElo "2033"]
[Result "0-1"]
[Round "03"]
[TimeControl "180+1"]
[Date "2022.09.27"]
[WhiteClock "0:00:01"]
[BlackClock "0:00:53"]

1. d4 {[%clk 0:02:59]}  Nf6 {[%clk 0:02:59]} 2. c4 {[%clk 0:02:59]}  c5 {[%clk 0:02:59]} 3. d5 {[%clk 0:02:59]}  b5 {[%clk 0:02:59]} 4. f3 {[%clk 0:02:59]}  e6 {[%clk 0:02:55]} 5. e4 {[%clk 0:03:00]}  exd5 {[%clk 0:02:55]} 6. cxd5 {[%clk 0:02:58]}  c4 {[%clk 0:02:55]} 7. b3 {[%clk 0:02:55]}  Bc5 {[%clk 0:02:47]} 8. bxc4 {[%clk 0:02:43]}  Qb6 {[%clk 0:02:33]} 9. Nh3 {[%clk 0:02:33]}  Bd4 {[%clk 0:02:28]} 10. cxb5 {[%clk 0:01:57]}  Bxa1 {[%clk 0:02:23]} 11. Bd3 {[%clk 0:01:46]}  d6 {[%clk 0:02:19]} 12. Nf2 {[%clk 0:01:43]}  Bd4 {[%clk 0:02:15]} 13. O-O {[%clk 0:01:42]}  O-O {[%clk 0:02:11]} 14. Nd2 {[%clk 0:01:27]}  a6 {[%clk 0:02:08]} 15. Nc4 {[%clk 0:01:24]}  Qc7 {[%clk 0:01:58]} 16. Ba3 {[%clk 0:01:09]}  Rd8 {[%clk 0:01:55]} 17. Qa4 {[%clk 0:00:47]}  Bb7 {[%clk 0:01:43]} 18. b6 {[%clk 0:00:42]}  Bxb6 {[%clk 0:01:41]} 19. Nxb6 {[%clk 0:00:14]}  Qxb6 {[%clk 0:01:41]} 20. Rb1 {[%clk 0:00:14]}  Qa7 {[%clk 0:01:41]} 21. Kf1 {[%clk 0:00:07]}  Nbd7 {[%clk 0:01:16]} 22. Bxd6 {[%clk 0:00:06]}  Rac8 {[%clk 0:01:12]} 23. Be2 {[%clk 0:00:04]}  Ba8 {[%clk 0:01:09]} 24. Nd3 {[%clk 0:00:04]}  Bxd5 {[%clk 0:00:54]} 25. exd5 {[%clk 0:00:04]}  Nxd5 {[%clk 0:00:55]} 26. Qa3 {[%clk 0:00:02]}  Ne3+ {[%clk 0:00:54]} 27. Ke1 {[%clk 0:00:01]}  Nc2+ {[%clk 0:00:54]} 28. Kd2 {[%clk 0:00:01]}  Nxa3 {[%clk 0:00:54]} 29. Bxa3 {[%clk 0:00:01]}  Ne5 {[%clk 0:00:53]} 0-1


[Site "https://www.chess.com"]

[Event "Titled Tuesday Blitz September 27 Early 2022"]
[White "Namitbir Singh Walia"]
[Black "Yang, Ray"]
[WhiteFideId "35071068"]
[BlackFideId "3220281"]
[WhiteElo "1664"]
[BlackElo "1796"]
[Result "1/2-1/2"]
[Round "03"]
[TimeControl "180+1"]
[Date "2022.09.27"]
[WhiteClock "0:00:03"]
[BlackClock "0:00:03"]

1. e4 {[%clk 0:02:55]}  e6 {[%clk 0:02:59]} 2. d3 {[%clk 0:02:48]}  d5 {[%clk 0:02:58]} 3. Nd2 {[%clk 0:02:48]}  Nf6 {[%clk 0:02:58]} 4. g3 {[%clk 0:02:42]}  dxe4 {[%clk 0:02:55]} 5. Nxe4 {[%clk 0:02:43]}  Nxe4 {[%clk 0:02:55]} 6. dxe4 {[%clk 0:02:43]}  Qxd1+ {[%clk 0:02:56]} 7. Kxd1 {[%clk 0:02:44]}  e5 {[%clk 0:02:55]} 8. Be3 {[%clk 0:02:37]}  Be6 {[%clk 0:02:51]} 9. c3 {[%clk 0:02:36]}  Nd7 {[%clk 0:02:50]} 10. Kc2 {[%clk 0:02:36]}  Nc5 {[%clk 0:02:46]} 11. f3 {[%clk 0:02:33]}  O-O-O {[%clk 0:02:40]} 12. Be2 {[%clk 0:02:20]}  a5 {[%clk 0:02:34]} 13. b3 {[%clk 0:02:13]}  g6 {[%clk 0:02:24]} 14. h4 {[%clk 0:02:09]}  f5 {[%clk 0:02:21]} 15. Bg5 {[%clk 0:01:30]}  Rd7 {[%clk 0:02:17]} 16. Bf6 {[%clk 0:01:27]}  Rg8 {[%clk 0:02:13]} 17. Bxe5 {[%clk 0:01:21]}  fxe4 {[%clk 0:02:12]} 18. Rd1 {[%clk 0:01:14]}  Rxd1 {[%clk 0:01:58]} 19. Bxd1 {[%clk 0:01:15]}  Bf5 {[%clk 0:01:47]} 20. g4 {[%clk 0:01:13]}  Be6 {[%clk 0:01:24]} 21. f4 {[%clk 0:01:06]}  Nd3 {[%clk 0:01:18]} 22. Nh3 {[%clk 0:00:55]}  a4 {[%clk 0:01:12]} 23. Bd4 {[%clk 0:00:38]}  axb3+ {[%clk 0:01:10]} 24. axb3 {[%clk 0:00:39]}  c5 {[%clk 0:01:06]} 25. Be3 {[%clk 0:00:38]}  h6 {[%clk 0:01:02]} 26. Be2 {[%clk 0:00:37]}  c4 {[%clk 0:00:59]} 27. bxc4 {[%clk 0:00:23]}  Bxc4 {[%clk 0:01:00]} 28. Rb1 {[%clk 0:00:12]}  b5 {[%clk 0:00:41]} 29. Kd2 {[%clk 0:00:11]}  Bd6 {[%clk 0:00:37]} 30. Ra1 {[%clk 0:00:07]}  Kb7 {[%clk 0:00:35]} 31. Ra7+ {[%clk 0:00:07]}  Kc6 {[%clk 0:00:31]} 32. Rh7 {[%clk 0:00:06]}  Ra8 {[%clk 0:00:24]} 33. Ra7 {[%clk 0:00:03]}  Rxa7 {[%clk 0:00:22]} 34. Bxa7 {[%clk 0:00:04]}  Nxf4 {[%clk 0:00:21]} 35. Bxc4 {[%clk 0:00:05]}  bxc4 {[%clk 0:00:19]} 36. Nf2 {[%clk 0:00:05]}  Ng2 {[%clk 0:00:16]} 37. Nxe4 {[%clk 0:00:04]}  Nxh4 {[%clk 0:00:16]} 38. Be3 {[%clk 0:00:03]}  g5 {[%clk 0:00:13]} 39. Ke2 {[%clk 0:00:03]}  Ng6 {[%clk 0:00:12]} 40. Bd4 {[%clk 0:00:01]}  Nf4+ {[%clk 0:00:12]} 41. Kf3 {[%clk 0:00:01]}  Nd3 {[%clk 0:00:12]} 42. Nd2 {[%clk 0:00:01]}  Be5 {[%clk 0:00:10]} 43. Ke4 {[%clk 0:00:02]}  Bxd4 {[%clk 0:00:08]} 44. Kxd4 {[%clk 0:00:02]}  Nf2 {[%clk 0:00:08]} 45. Nxc4 {[%clk 0:00:03]}  Nxg4 {[%clk 0:00:08]} 46. Ke4 {[%clk 0:00:03]}  Nf6+ {[%clk 0:00:08]} 47. Kf5 {[%clk 0:00:03]}  Nd5 {[%clk 0:00:08]} 48. Kg6 {[%clk 0:00:01]}  g4 {[%clk 0:00:05]} 49. Nd2 {[%clk 0:00:01]}  g3 {[%clk 0:00:05]} 50. Nf3 {[%clk 0:00:01]}  g2 {[%clk 0:00:03]} 51. Kxh6 {[%clk 0:00:01]}  Nxc3 {[%clk 0:00:04]} 52. Kh5 {[%clk 0:00:02]}  Ne2 {[%clk 0:00:04]} 53. Kg4 {[%clk 0:00:02]}  Kd5 {[%clk 0:00:03]} 54. Kh3 {[%clk 0:00:02]}  Nf4+ {[%clk 0:00:02]} 55. Kg3 {[%clk 0:00:03]}  Ke4 {[%clk 0:00:03]} 56. Kf2 {[%clk 0:00:03]}  Nd3+ {[%clk 0:00:03]} 57. Kxg2 {[%clk 0:00:03]} 1/2-1/2


[Site "https://www.chess.com"]

[Event "Titled Tuesday Blitz September 27 Early 2022"]
[White "Oparin, Grigoriy"]
[Black "Ladan, Nicholas"]
[WhiteFideId "24125890"]
[BlackFideId "30918855"]
[WhiteElo "2639"]
[BlackElo "2167"]
[Result "1-0"]
[Round "03"]
[TimeControl "180+1"]
[Date "2022.09.27"]
[WhiteClock "0:00:42"]
[BlackClock "0:00:18"]

1. e4 {[%clk 0:03:00]}  e5 {[%clk 0:02:59]} 2. Nf3 {[%clk 0:02:59]}  Nc6 {[%clk 0:03:00]} 3. Bb5 {[%clk 0:03:00]}  a6 {[%clk 0:02:58]} 4. Ba4 {[%clk 0:02:59]}  g6 {[%clk 0:02:58]} 5. c3 {[%clk 0:02:57]}  Bg7 {[%clk 0:02:58]} 6. d4 {[%clk 0:02:54]}  b5 {[%clk 0:02:57]} 7. Bb3 {[%clk 0:02:48]}  exd4 {[%clk 0:02:57]} 8. cxd4 {[%clk 0:02:49]}  Na5 {[%clk 0:02:57]} 9. Bc2 {[%clk 0:02:49]}  Ne7 {[%clk 0:02:56]} 10. O-O {[%clk 0:02:48]}  d6 {[%clk 0:02:53]} 11. d5 {[%clk 0:02:45]}  O-O {[%clk 0:02:49]} 12. Bd2 {[%clk 0:02:41]}  Bxb2 {[%clk 0:02:43]} 13. Bxa5 {[%clk 0:02:39]}  Bxa1 {[%clk 0:02:41]} 14. Nc3 {[%clk 0:02:39]}  Bxc3 {[%clk 0:02:31]} 15. Bxc3 {[%clk 0:02:40]}  f6 {[%clk 0:02:30]} 16. Nd4 {[%clk 0:02:35]}  Bd7 {[%clk 0:02:26]} 17. f4 {[%clk 0:02:35]}  c5 {[%clk 0:02:07]} 18. dxc6 {[%clk 0:02:05]}  Nxc6 {[%clk 0:02:07]} 19. Nf3 {[%clk 0:02:01]}  Qe7 {[%clk 0:02:01]} 20. h3 {[%clk 0:01:52]}  Be6 {[%clk 0:01:55]} 21. Bb1 {[%clk 0:01:47]}  Rad8 {[%clk 0:01:53]} 22. Re1 {[%clk 0:01:45]}  Qf7 {[%clk 0:01:52]} 23. Qe2 {[%clk 0:01:38]}  Bc4 {[%clk 0:01:50]} 24. Qf2 {[%clk 0:01:37]}  Rfe8 {[%clk 0:01:47]} 25. h4 {[%clk 0:01:20]}  d5 {[%clk 0:01:47]} 26. e5 {[%clk 0:01:20]}  d4 {[%clk 0:01:46]} 27. Nxd4 {[%clk 0:01:15]}  Nxd4 {[%clk 0:01:45]} 28. Bxd4 {[%clk 0:01:16]}  fxe5 {[%clk 0:01:34]} 29. Bxe5 {[%clk 0:01:17]}  Rd3 {[%clk 0:01:19]} 30. Bxd3 {[%clk 0:01:10]}  Bxd3 {[%clk 0:01:20]} 31. Rd1 {[%clk 0:01:09]}  Be4 {[%clk 0:01:15]} 32. h5 {[%clk 0:01:05]}  gxh5 {[%clk 0:01:10]} 33. Rd6 {[%clk 0:01:05]}  Bg6 {[%clk 0:00:57]} 34. Rf6 {[%clk 0:00:59]}  Qd5 {[%clk 0:00:53]} 35. Rxa6 {[%clk 0:00:42]}  Qd1+ {[%clk 0:00:39]} 36. Kh2 {[%clk 0:00:42]}  Qg4 {[%clk 0:00:29]} 37. Ra7 {[%clk 0:00:41]}  h4 {[%clk 0:00:25]} 38. Rg7+ {[%clk 0:00:41]}  Kh8 {[%clk 0:00:18]} 39. Rxg6+ {[%clk 0:00:41]}  Rxe5 {[%clk 0:00:18]} 40. Rxg4 {[%clk 0:00:42]} 1-0


[Site "https://www.chess.com"]